bitfinex/quotes_ETHUSD_20241004
["timestamp","ask_amount","ask_price","bid_price","bid_amount"]
[1728050389934,4.1972,2382.6,2382.0,4.19813]
[1728050390355,8.39445,2382.6,2382.1,4.30890867]
[1728050390549,0.7565,2382.7,2382.2,4.19778]
[1728050390751,7.19689,2382.8,2382.1,4.30890867]
[1728050390752,4.19742,2382.5,2382.1,0.11095867]
[1728050391023,4.19712,2382.6,2382.2,0.11081411]
[1728050391223,4.19712,2382.6,2382.3,0.7822]
[1728050391465,7.1969,2382.8,2382.3,0.7822]
[1728050391466,4.19695,2382.7,2382.3,0.7822]
[1728050391671,4.19711,2382.6,2382.4,0.11052501]
[1728050392624,7.19687,2382.8,2382.4,0.11052501]
[1728050392625,4.19693,2382.7,2382.4,0.11052501]
[1728050392878,7.19681,2382.8,2382.4,4.30796501]
[1728050393168,4.19659,2382.9,2382.5,4.19717]
[1728050393675,4.19649,2383.0,2382.6,4.30732596]
[1728050393881,4.19648,2383.0,2382.6,4.30732596]
[1728050394082,4.19641,2383.0,2382.6,4.30732596]
[1728050394377,4.19641,2383.0,2382.6,1.05356681]
[1728050394768,4.19641,2383.0,2382.6,0.11023596]
[1728050394973,4.19638,2383.1,2382.6,4.30724596]
[1728050395172,4.19606,2383.2,2382.8,4.19661]
[1728050395539,4.19578,2383.4,2382.9,4.30633248]
[1728050395540,8.39163,2383.4,2382.9,4.30633248]
[1728050395740,4.19596,2383.3,2382.9,4.30633248]
[1728050395941,0.8016,2383.6,2383.0,4.19634]
[1728050396177,4.19495,2383.9,2383.3,4.19585]
[1728050396382,4.19495,2383.9,2383.4,4.19567]
[1728050396597,4.19495,2383.9,2383.4,4.30461219]
[1728050396745,4.19473,2384.0,2383.5,4.19543]
[1728050396943,4.19473,2384.0,2383.6,0.7549]
[1728050396944,4.19492,2383.9,2383.6,0.7549]
[1728050397243,4.19532,2383.7,2383.6,0.10865338]
[1728050397469,4.19552,2383.5,2383.2,0.7534]
[1728050397669,4.19552,2383.5,2383.3,0.10888873]
[1728050397871,4.19552,2383.5,2383.2,0.7534]
[1728050398385,4.19535,2383.6,2383.3,0.10888873]
[1728050398554,4.19506,2383.8,2383.3,4.30470873]
[1728050398755,0.419473,2384.0,2383.3,4.30470873]
[1728050398756,0.419473,2384.0,2383.3,4.70163087]
[1728050398980,4.19518,2383.7,2383.3,4.19582]
[1728050399295,4.19516,2383.7,2383.4,0.10874431]
[1728050399449,4.19516,2383.7,2383.3,4.19585]
[1728050399649,8.39041,2383.7,2383.4,0.10874431]
[1728050399852,4.19544,2383.6,2383.4,0.10874431]
[1728050400175,4.19544,2383.6,2383.2,4.94933]
[1728050400371,4.19499,2383.8,2383.2,0.7534]
[1728050400582,4.19597,2383.3,2382.9,0.7838]
[1728050400748,4.19623,2383.1,2382.9,0.7838]
[1728050400951,4.1958,2383.4,2382.9,0.7838]
[1728050401157,4.19535,2383.6,2383.2,4.19603]
[1728050401501,4.19531,2383.7,2383.1,4.19607]
[1728050401675,4.19542,2383.6,2383.2,4.1959]
[1728050401877,7.31,2383.8,2382.8,4.19661]
[1728050401878,7.31,2383.8,2383.6,0.7746]
[1728050402049,7.19443,2384.2,2383.7,4.19515]
[1728050402248,1.3161716,2384.3,2383.6,4.96977]
[1728050402249,1.3161716,2384.3,2383.6,0.7746]
[1728050402569,4.19512,2383.8,2383.3,0.7813]
[1728050402761,4.19515,2383.7,2383.3,0.7813]
[1728050402961,0.419512,2383.8,2383.3,4.97715]
[1728050403190,4.1955,2383.6,2383.1,4.97748]
[1728050403405,4.614502,2383.8,2383.3,4.19569]
[1728050403711,4.19518,2383.7,2383.3,4.19569]
[1728050403855,4.19494,2383.9,2383.3,4.19584]
[1728050404051,0.797114,2383.9,2383.4,4.19564]
[1728050404289,0.797114,2383.9,2383.1,0.7813]
[1728050404290,4.19565,2383.5,2383.1,0.7813]
[1728050404497,4.19578,2383.4,2383.1,0.7813]
[1728050404794,4.1962,2383.2,2382.8,0.7665]
[1728050404962,4.1962,2383.2,2382.8,4.96322]
[1728050405301,4.19612,2383.2,2382.8,0.7665]
[1728050405455,4.19612,2383.2,2382.8,4.96316]
[1728050405797,4.19612,2383.2,2382.8,0.7665]
[1728050406096,4.19622,2383.1,2382.8,0.7665]
[1728050406258,4.19612,2383.2,2382.8,0.7665]
[1728050406458,4.19647,2383.0,2382.8,0.7665]
[1728050406661,4.1967,2382.9,2382.4,0.8044]
[1728050407165,0.839279,2383.0,2382.5,4.19725]
[1728050407350,4.19633,2383.1,2382.5,4.19725]
[1728050407351,8.39269,2383.1,2382.6,4.197]
[1728050407546,4.19633,2383.1,2382.7,4.19687]
[1728050407752,7.95246,2383.5,2382.9,5.00096]
[1728050408003,7.31,2383.7,2383.0,4.19635]
[1728050408004,4.1953,2383.7,2383.0,4.19635]
[1728050408198,8.3906,2383.7,2383.2,4.19595]
[1728050408406,8.3906,2383.7,2383.1,4.19606]
[1728050408407,4.19541,2383.6,2383.1,4.19606]
[1728050408555,4.19551,2383.5,2383.1,0.919673]
[1728050408755,4.19551,2383.5,2383.0,4.19627]
[1728050408974,4.19551,2383.5,2382.9,0.8044]
[1728050409308,4.19594,2383.3,2382.9,0.8044]
[1728050409540,4.19632,2383.1,2382.6,4.95158]
[1728050409680,4.19593,2383.3,2382.8,4.19663]
[1728050410005,4.19626,2383.1,2382.6,4.95158]
[1728050410177,4.19626,2383.1,2382.7,4.19681]
[1728050410382,5.035169,2383.3,2382.7,4.19681]
[1728050410589,4.19628,2383.1,2382.6,4.95161]
[1728050410881,4.19628,2383.1,2382.7,4.19691]
[1728050411182,4.19603,2383.2,2382.6,4.95163]
[1728050411381,4.19603,2383.2,2382.6,9.14866]
[1728050411576,4.19603,2383.2,2382.8,4.19668]
[1728050411776,4.19603,2383.2,2382.7,4.19689]
[1728050412085,4.19639,2383.0,2382.6,0.7546]
[1728050412403,4.19623,2383.1,2382.7,4.19688]
[1728050412970,4.19667,2382.9,2382.6,0.7546]
[1728050413178,4.19674,2382.8,2382.4,5.01515]
[1728050413396,4.19674,2382.8,2382.4,5.93643]
[1728050413609,4.9476,2383.1,2382.5,4.19724]
[1728050413776,4.1964,2383.0,2382.6,4.19707]
[1728050414300,4.19606,2383.2,2382.7,4.19674]
[1728050414468,4.19593,2383.3,2382.9,0.7652]
[1728050414668,4.19572,2383.4,2382.9,4.9616]
[1728050414876,4.19548,2383.6,2383.0,4.19639]
[1728050414877,4.19546,2383.6,2383.0,4.19639]
[1728050415074,7.31,2383.8,2383.4,4.19561]
[1728050415075,4.19505,2383.8,2383.4,4.19561]
[1728050415287,0.8063,2383.9,2383.4,4.94645]
[1728050415487,4.85256024,2384.0,2383.5,8.39072]
[1728050415685,0.65783024,2384.0,2383.6,4.19517]
[1728050416112,0.65783024,2384.0,2383.8,4.19489]
[1728050416320,0.65783024,2384.0,2383.7,4.19508]
[1728050416483,4.19488,2383.9,2383.4,4.94642]
[1728050416804,4.19506,2383.8,2383.4,4.94639]
[1728050416976,4.19455,2384.1,2383.4,4.94636]
[1728050417176,0.419455,2384.0,2383.4,4.94636]
[1728050417382,4.19429,2384.2,2383.4,4.94636]
[1728050417609,6.03907443,2384.3,2383.5,4.19543]
[1728050417610,4.19496,2383.9,2383.5,4.19543]
[1728050418323,5.35519565,2384.3,2383.4,4.94632]
[1728050418475,1.16099565,2384.3,2383.4,0.7508]
[1728050418675,4.19484,2383.9,2383.4,4.94638]
[1728050418926,4.19457,2384.1,2383.4,0.7508]
[1728050419134,0.419457,2384.0,2383.4,0.7508]
[1728050419280,3.0,2384.2,2383.4,0.7508]
[1728050419481,4.19451,2384.1,2383.6,4.19522]
[1728050419723,4.19451,2384.1,2383.6,4.19519]
[1728050419892,4.19451,2384.1,2383.7,4.19514]
[1728050420294,7.19429,2384.2,2383.8,0.7617]
[1728050420576,4.1948,2383.9,2383.5,4.96239]
[1728050420734,7.19444,2384.2,2383.6,4.19525]
[1728050420933,4.1947,2384.0,2383.5,0.7669]
[1728050421170,4.19487,2383.9,2383.5,0.7669]
[1728050421381,4.19524,2383.7,2383.5,0.7669]
[1728050421596,3.0,2384.2,2383.2,0.7772]
[1728050421597,0.8067,2383.8,2383.2,0.7772]
[1728050421741,4.19586,2383.3,2382.9,0.7772]
[1728050422063,4.19586,2383.3,2382.9,4.97374]
[1728050422254,4.19545,2383.6,2383.2,4.19603]
[1728050422453,7.31,2383.9,2383.5,4.19541]
[1728050422640,4.19484,2383.9,2383.3,0.758]
[1728050422839,4.19505,2383.8,2383.3,0.758]
[1728050423082,4.19524,2383.7,2383.3,0.758]
[1728050423375,4.19552,2383.5,2382.9,4.19644]
[1728050423560,4.19552,2383.5,2383.0,5.00107]
[1728050423761,4.19591,2383.3,2383.0,0.8047]
[1728050423988,4.614864,2383.6,2383.0,0.8047]
[1728050424160,4.19534,2383.6,2383.1,4.19605]
[1728050424360,4.19534,2383.6,2383.0,5.00107]
[1728050424606,4.19562,2383.5,2383.0,5.001]
[1728050424751,4.19535,2383.6,2383.1,4.19605]
[1728050424956,3.8232,2383.9,2383.0,0.8047]
[1728050425245,4.19586,2383.3,2383.0,0.8047]
[1728050426160,4.19569,2383.4,2383.0,5.00107]
[1728050426786,8.01812,2383.9,2383.3,4.19586]
[1728050426787,4.19528,2383.7,2383.3,4.19586]
[1728050426999,4.19528,2383.7,2382.7,3.0]
[1728050427000,3.0,2384.0,2383.5,4.19541]
[1728050427287,4.19464,2384.0,2383.5,4.19535]
[1728050427462,4.1949,2383.9,2383.5,4.19535]
[1728050427821,5.35509565,2384.3,2383.4,0.8081]
[1728050427822,4.19529,2383.7,2383.4,0.8081]
[1728050428090,5.034181,2383.7,2383.4,0.8081]
[1728050428304,8.39045,2383.7,2383.4,0.8081]
[1728050428594,4.19537,2383.6,2383.2,0.8085]
[1728050428795,4.19554,2383.5,2383.2,0.8085]
[1728050428982,4.19554,2383.5,2383.0,0.827]
[1728050428983,4.19579,2383.4,2383.0,0.827]
[1728050429194,4.19576,2383.4,2383.0,0.827]
[1728050429362,4.19542,2383.6,2383.1,4.19605]
[1728050429559,4.19559,2383.5,2383.0,5.945328]
[1728050429958,4.19525,2383.7,2383.1,4.19613]
[1728050430199,4.19537,2383.6,2383.2,4.19592]
[1728050430502,4.19553,2383.5,2383.0,5.02329]
[1728050430705,4.615333,2383.4,2383.0,5.02329]
[1728050430997,4.1962,2383.2,2382.8,5.01273]
[1728050431361,4.19615,2383.2,2382.8,0.816]
[1728050431572,4.19615,2383.2,2382.5,4.19711]
[1728050431573,4.1968,2382.8,2382.5,0.8174]
[1728050432188,4.19682,2382.8,2382.5,0.8174]
[1728050432828,4.19648,2383.0,2382.5,5.01452]
[1728050433189,4.19616,2383.2,2382.8,4.19667]
[1728050433408,4.19646,2383.0,2382.6,4.19708]
[1728050433611,4.1963,2383.1,2382.6,4.197]
[1728050433895,4.1963,2383.1,2382.7,4.19689]
[1728050434097,4.19608,2383.2,2382.7,4.19689]
[1728050434308,4.19583,2383.4,2383.0,4.19632]
[1728050434475,4.19579,2383.4,2382.9,4.19642]
[1728050434818,4.19604,2383.2,2382.8,4.95152]
[1728050435108,4.19636,2383.1,2382.8,0.7548]
[1728050435321,4.19639,2383.0,2382.9,0.1094113]
[1728050435584,5.035665,2383.0,2382.9,0.1094113]
[1728050436074,5.035665,2383.0,2382.2,0.8323]
[1728050436075,4.19741,2382.5,2382.2,0.8323]
[1728050436371,4.19665,2382.9,2382.2,0.8323]
[1728050436372,4.19762,2382.3,2382.2,0.8323]
[1728050436583,4.19749,2382.4,2382.2,0.8323]
[1728050436584,4.19747,2382.4,2382.2,0.8323]
[1728050436748,4.19729,2382.5,2382.2,0.8323]
[1728050437428,4.99403,2382.7,2382.3,4.30787837]
[1728050437429,4.19703,2382.7,2382.3,4.30787837]
[1728050437628,4.19637,2383.1,2382.3,4.58808664]
[1728050437882,4.19599,2383.3,2382.8,4.1966]
[1728050438169,3.0,2383.4,2383.1,0.809]
[1728050438366,4.19603,2383.2,2383.1,0.809]
[1728050438538,4.19603,2383.2,2383.1,0.10912237]
[1728050439155,4.19603,2383.2,2382.9,0.809]
[1728050439337,4.19641,2383.0,2382.7,0.809]
[1728050439539,8.39291,2383.0,2382.7,0.809]
[1728050439762,0.419603,2383.2,2382.7,5.00588]
[1728050439763,4.19623,2383.1,2382.7,5.00588]
[1728050439980,4.19623,2383.1,2382.7,0.809]
[1728050440165,4.19623,2383.1,2382.7,5.00583]
[1728050440881,4.19623,2383.1,2382.7,0.809]
[1728050441037,8.39253,2383.1,2382.7,5.0059]
[1728050441234,4.1964,2383.0,2382.7,0.809]
[1728050441435,4.19657,2382.9,2382.7,0.809]
[1728050441784,4.19657,2382.9,2382.5,4.1971]
[1728050441785,4.19663,2382.9,2382.5,4.19722]
[1728050441938,4.1968,2382.8,2382.4,4.99743]
[1728050442143,5.370553,2383.2,2382.4,0.8001]
[1728050442462,4.19658,2382.9,2382.5,4.19718]
[1728050442646,0.839304,2382.9,2382.4,0.8001]
[1728050442851,4.19675,2382.8,2382.4,4.99754]
[1728050443048,4.19675,2382.8,2382.4,0.8001]
[1728050443351,4.19705,2382.7,2382.4,0.8001]
[1728050443768,8.39364,2382.8,2382.4,0.8001]
[1728050444180,4.19675,2382.8,2382.4,4.99746]
[1728050444381,4.19665,2382.9,2382.5,4.19725]
[1728050444552,4.19685,2382.8,2382.4,1.299846]
[1728050444740,4.19633,2383.1,2382.5,4.19726]
[1728050444941,4.19633,2383.1,2382.6,4.19708]
[1728050444942,4.19626,2383.1,2382.6,4.19708]
[1728050445180,4.19665,2382.9,2382.6,0.9694216]
[1728050445377,4.19665,2382.9,2382.4,5.497136]
[1728050445580,4.19665,2382.9,2382.4,1.299846]
[1728050445782,4.19631,2383.1,2382.4,4.99753]
[1728050445994,4.19641,2383.0,2382.5,4.19719]
[1728050446192,4.19664,2382.9,2382.5,4.19719]
[1728050446482,4.19641,2383.0,2382.6,4.30705975]
[1728050446705,4.19681,2382.8,2382.6,0.10997975]
[1728050447001,4.95084,2383.2,2382.4,4.19729]
[1728050447002,4.19651,2383.0,2382.4,4.19729]
[1728050447152,2.47709564,2383.2,2382.4,4.19729]
[1728050447153,4.19668,2382.9,2382.6,0.8126]
[1728050447483,4.19668,2382.9,2382.7,0.10992266]
[1728050447692,4.19676,2382.8,2382.4,0.8126]
[1728050447898,4.19674,2382.9,2382.4,5.01002]
[1728050448098,4.19644,2383.0,2382.4,5.01002]
[1728050448099,4.19674,2382.8,2382.5,0.11022856]
[1728050448309,1.72229564,2383.2,2382.6,4.19705]
[1728050448601,4.19632,2383.1,2382.5,1.04201342]
[1728050448907,4.19649,2383.0,2382.7,0.10993954]
[1728050449086,4.19649,2383.0,2382.6,4.30712404]
[1728050449266,4.19649,2383.0,2382.8,0.10979504]
[1728050449467,4.19649,2383.0,2382.5,8.39439]
[1728050449797,4.19649,2383.0,2382.4,0.8126]
[1728050450010,4.19682,2382.8,2382.4,5.01004]
[1728050450306,4.19682,2382.8,2382.5,0.11022856]
[1728050450556,3.759,2383.0,2382.5,0.11022856]
[1728050450735,7.95609,2382.6,2382.5,0.11022856]
[1728050451034,4.1985,2381.8,2381.3,4.99538]
[1728050451242,4.1985,2381.8,2381.4,0.499538]
[1728050451444,4.19826,2382.0,2381.4,0.499538]
[1728050451644,4.19826,2382.0,2381.6,4.19884]
[1728050451845,7.31,2382.3,2381.5,0.8309]
[1728050452148,4.19755,2382.4,2382.0,0.8309]
[1728050452446,3.0,2382.5,2382.0,5.02903]
[1728050452745,4.19731,2382.5,2382.0,5.531853]
[1728050452893,4.19721,2382.6,2382.0,5.531833]
[1728050453095,4.19728,2382.5,2382.0,5.531833]
[1728050453528,4.19766,2382.3,2382.0,1.333803]
[1728050453736,4.1978,2382.2,2382.0,0.8309]
[1728050454276,4.19781,2382.2,2382.0,0.8309]
[1728050455278,4.19764,2382.3,2382.0,0.8309]
[1728050455425,4.19769,2382.3,2382.0,0.8309]
[1728050455933,4.19755,2382.4,2382.0,0.8309]
[1728050456266,4.1977,2382.3,2382.0,0.8309]
[1728050456443,4.19788,2382.2,2382.0,0.8309]
[1728050457042,4.19837,2381.9,2381.5,5.02255]
[1728050457334,0.839558,2382.2,2381.5,5.02255]
[1728050457335,4.19885,2381.6,2381.5,0.8236]
[1728050457532,4.19885,2381.6,2381.1,0.1175618]
[1728050457533,4.19903,2381.5,2381.1,0.9045618]
[1728050457772,0.8159,2381.8,2381.1,0.9045618]
[1728050457773,4.19895,2381.6,2381.1,5.1041418]
[1728050458069,4.19922,2381.4,2381.1,0.9045618]
[1728050458446,4.19898,2381.6,2381.1,6.03467698]
[1728050458769,4.19898,2381.6,2381.2,4.19947]
[1728050458935,4.19904,2381.5,2381.1,6.03473698]
[1728050459273,4.19889,2381.6,2381.2,4.19955]
[1728050459490,4.19889,2381.6,2381.1,1.83501698]
[1728050459773,4.19889,2381.6,2381.1,6.03468698]
[1728050459953,4.19889,2381.6,2381.2,1.0234467]
[1728050460332,0.8159,2381.8,2381.1,0.9045618]
[1728050460564,4.19956,2381.2,2381.1,0.9045618]
[1728050460880,7.19956,2381.2,2381.1,0.1175618]
[1728050461589,7.74956,2381.2,2381.1,0.1175618]
[1728050461794,4.20117,2380.3,2379.9,0.7695]
[1728050462089,4.2007,2380.6,2380.1,4.20138]
[1728050462382,7.31,2380.9,2380.1,0.7875]
[1728050462383,4.20023,2380.9,2380.1,0.7875]
[1728050462534,4.20055,2380.7,2380.2,0.11254378]
[1728050462729,4.20029,2380.8,2380.2,0.11254378]
[1728050462949,4.20115,2380.3,2380.2,0.11254378]
[1728050463142,4.20108,2380.4,2380.2,0.11254378]
[1728050463432,4.20108,2380.4,2379.8,4.98943]
[1728050463644,4.20108,2380.4,2379.9,4.20181]
[1728050463830,4.20073,2380.6,2380.0,4.20158]
[1728050464065,0.55,2380.9,2380.0,0.498908]
[1728050464384,4.20109,2380.4,2379.8,4.98938]
[1728050464547,4.20109,2380.4,2379.9,4.20185]
[1728050464731,4.20109,2380.4,2379.8,9.19131]
[1728050464931,4.20109,2380.4,2379.9,4.20176]
[1728050465131,4.20107,2380.4,2379.9,4.20176]
[1728050465794,4.20028,2380.8,2380.2,4.20129]
[1728050465795,4.20038,2380.8,2380.2,4.20129]
[1728050466083,4.20038,2380.8,2379.9,0.919114]
[1728050466084,4.20011,2380.9,2380.4,5.02616]
[1728050466231,5.00263,2381.0,2380.4,5.02616]
[1728050466232,0.8026,2381.0,2380.4,0.8253]
[1728050466433,0.8026,2381.0,2380.3,4.20111]
[1728050466434,4.20049,2380.7,2379.9,4.20171]
[1728050466647,4.20166,2380.1,2379.8,0.7671]
[1728050466875,4.20139,2380.2,2379.6,4.96938]
[1728050467084,4.20153,2380.1,2379.6,0.7671]
[1728050467369,4.20168,2380.0,2379.6,0.7671]
[1728050467580,4.20153,2380.1,2379.6,0.7671]
[1728050467779,4.20153,2380.1,2379.6,4.96944]
[1728050468076,4.20169,2380.0,2379.6,0.7671]
[1728050468451,4.20176,2380.0,2379.6,0.7671]
[1728050468771,4.20121,2380.3,2379.9,4.20184]
[1728050468972,4.20149,2380.2,2379.7,8.40422]
[1728050469285,4.99534,2380.5,2380.0,4.20158]
[1728050469502,4.20099,2380.4,2379.8,4.20201]
[1728050469775,3.7945,2380.5,2380.0,4.20164]
[1728050469937,3.7945,2380.5,2380.1,4.20142]
[1728050469938,3.0,2380.5,2380.1,4.20142]
[1728050470432,4.20099,2380.4,2379.8,4.20191]
[1728050470674,3.0,2380.5,2380.2,4.20132]
[1728050471177,4.99617,2381.1,2380.6,4.20053]
[1728050471333,4.87966071,2381.6,2381.0,4.19977]
[1728050471334,1.23520907,2381.4,2381.0,4.19977]
[1728050471535,1.23520907,2381.4,2380.6,5.442253]
[1728050471536,8.1064,2381.8,2381.2,4.19941]
[1728050471883,8.1064,2381.8,2380.9,5.02548]
[1728050471884,4.19936,2381.4,2380.9,5.02548]
[1728050472179,4.99504,2381.8,2381.1,4.19973]
[1728050472478,5.01337,2382.2,2381.2,0.8254]
[1728050472650,4.19835,2381.9,2381.4,4.19911]
[1728050473073,4.19805,2382.1,2381.5,4.199]
[1728050473367,9.21138,2382.2,2381.5,4.19893]
[1728050473671,4.19824,2382.0,2381.5,4.19893]
[1728050473873,4.19869,2381.7,2381.2,0.8254]
[1728050474074,4.19869,2381.7,2381.2,5.02494]
[1728050474278,4.19903,2381.5,2381.0,4.1999]
[1728050474448,4.19904,2381.5,2381.0,4.19982]
[1728050474649,4.1987,2381.7,2380.9,4.97269]
[1728050474849,7.19817,2382.0,2380.9,4.97266]
[1728050474850,4.1993,2381.4,2380.9,4.97266]
[1728050475091,4.19912,2381.5,2381.0,4.1998]
[1728050475092,4.98212,2381.5,2381.0,4.1998]
[1728050475272,4.98212,2381.5,2380.9,4.97269]
[1728050475273,3.7667,2381.8,2380.9,0.7727]
[1728050475440,4.19905,2381.5,2380.9,9.17262]
[1728050475635,4.19905,2381.5,2381.0,4.1998]
[1728050476070,4.19808,2382.1,2381.5,0.7599]
[1728050476269,3.0,2382.0,2381.6,4.19876]
[1728050476582,7.19825,2382.0,2381.6,0.10697777]
[1728050477197,0.65832453,2382.1,2381.7,4.1986]
[1728050477397,0.65832453,2382.1,2381.6,0.10697777]
[1728050477398,0.65832453,2382.1,2382.0,4.19815]
[1728050477554,0.65832453,2382.1,2381.9,4.19831]
[1728050477754,0.65832453,2382.1,2382.0,0.10636437]
[1728050478186,0.65832453,2382.1,2381.8,4.19848]
[1728050478390,0.65832453,2382.1,2382.0,0.10636437]
[1728050478562,0.65832453,2382.1,2381.5,0.7599]
[1728050478563,1.14393698,2382.1,2381.9,0.10650896]
[1728050478757,1.14393698,2382.1,2382.0,0.10636437]
[1728050478970,0.65832453,2382.1,2382.0,0.10636437]
[1728050479177,0.65832453,2382.1,2381.8,4.19833]
[1728050479379,0.65832453,2382.1,2381.8,8.39675]
[1728050479660,0.65832453,2382.1,2382.0,0.10636437]
[1728050479883,0.65832453,2382.1,2381.9,4.30482896]
[1728050480089,0.65832453,2382.1,2382.0,0.10636437]
[1728050480269,5.34188998,2382.1,2381.7,4.19866]
[1728050480472,5.34190998,2382.1,2382.0,0.10636437]
[1728050480678,1.14391998,2382.1,2381.6,4.19872]
[1728050480905,4.19844,2381.9,2381.5,0.7599]
[1728050481202,4.19815,2382.0,2380.8,0.7617]
[1728050481203,4.19913,2381.5,2380.8,0.7617]
[1728050481368,4.19913,2381.5,2381.0,4.19983]
[1728050481547,8.39824,2381.5,2381.0,4.19982]
[1728050481749,0.7743,2381.4,2380.8,4.96184]
[1728050481988,4.19959,2381.2,2380.8,4.20014]
[1728050482493,4.19959,2381.2,2380.5,0.775]
[1728050482494,4.19991,2381.0,2380.5,4.20066]
[1728050482654,4.19991,2381.0,2380.6,4.20056]
[1728050482855,8.39996,2381.0,2380.4,4.2008]
[1728050483065,4.19991,2381.0,2380.6,4.20061]
[1728050483354,5.0896029,2381.0,2380.6,4.20061]
[1728050483559,0.8896929,2381.0,2380.6,4.20052]
[1728050483877,5.0896129,2381.0,2380.6,4.20052]
[1728050484206,0.7607,2380.8,2380.5,4.20078]
[1728050484615,0.7607,2380.8,2380.4,4.20097]
[1728050484780,0.7607,2380.8,2380.3,4.20099]
[1728050484976,0.8896929,2381.0,2380.5,4.20067]
[1728050485178,8.0897229,2381.0,2380.5,4.20067]
[1728050485480,4.20029,2380.8,2380.4,4.20096]
[1728050485704,4.20055,2380.7,2380.2,4.99972]
[1728050485911,4.20029,2380.8,2380.3,4.20113]
[1728050486210,5.12920529,2380.9,2380.4,4.20088]
[1728050486398,4.20021,2380.9,2380.2,4.99969]
[1728050486588,4.20044,2380.7,2380.3,4.20106]
[1728050487018,4.20027,2380.8,2380.2,4.99969]
[1728050487176,4.20046,2380.7,2380.2,4.20119]
[1728050487377,4.20073,2380.6,2380.1,4.20148]
[1728050487619,4.20081,2380.5,2380.0,4.20154]
[1728050487820,4.20081,2380.5,2379.9,0.7523]
[1728050487821,4.20115,2380.3,2379.9,4.95414]
[1728050488066,9.18243,2380.5,2380.0,4.20158]
[1728050488348,4.20115,2380.3,2379.9,4.95414]
[1728050488614,4.20115,2380.3,2379.7,4.20209]
[1728050489126,4.20115,2380.3,2379.8,4.20194]
[1728050489333,4.20136,2380.2,2379.8,4.20194]
[1728050489490,4.20136,2380.2,2379.7,8.40422]
[1728050489677,4.20136,2380.2,2379.6,5.451616]
[1728050490018,4.96828,2379.9,2379.3,4.20281]
[1728050490182,3.7663,2379.9,2379.3,4.20289]
[1728050490485,4.20256,2379.5,2379.1,4.20321]
[1728050490825,4.20256,2379.5,2378.9,4.99308]
[1728050491027,4.20256,2379.5,2379.0,4.20336]
[1728050491329,4.20256,2379.5,2379.1,0.1073051]
[1728050491489,4.20256,2379.5,2379.0,4.20342]
[1728050491689,4.20299,2379.3,2379.2,0.10716017]
[1728050491908,4.20274,2379.4,2379.0,4.20335]
[1728050492104,4.20274,2379.4,2379.2,0.10716017]
[1728050492339,4.95981,2379.3,2378.7,0.1175618]
[1728050492557,5.043344,2379.4,2379.3,0.10353624]
[1728050492836,4.20303,2379.3,2378.8,4.20378]
[1728050493140,4.20269,2379.5,2378.8,4.20378]
[1728050493141,4.20269,2379.5,2379.0,4.20343]
[1728050493310,4.20301,2379.3,2378.8,4.20374]
[1728050493505,4.20314,2379.2,2378.7,4.3215218]
[1728050493701,4.20301,2379.3,2378.8,4.20373]
[1728050493909,4.20268,2379.5,2379.0,4.20344]
[1728050494130,4.705978,2379.5,2379.0,4.20344]
[1728050494293,4.705978,2379.5,2378.7,0.1175618]
[1728050494294,4.705978,2379.5,2378.9,4.20348]
[1728050494497,0.8087,2379.2,2378.7,0.1175618]
[1728050494703,4.2038,2378.8,2378.7,0.1175618]
[1728050495194,0.8087,2379.2,2378.7,0.1175618]
[1728050495400,7.20364,2378.9,2378.7,0.1175618]
[1728050495605,3.0,2379.0,2378.7,0.1175618]
[1728050495847,4.2034,2379.1,2378.7,0.1175618]
[1728050496043,4.20353,2379.0,2378.7,0.1175618]
[1728050496245,4.20376,2378.9,2378.7,0.1175618]
[1728050496729,0.8087,2379.2,2378.7,0.1175618]
[1728050497038,3.0,2379.1,2378.7,0.1175618]
[1728050497343,5.01191,2379.2,2378.7,0.1175618]
[1728050497549,4.20342,2379.1,2378.7,0.1175618]
[1728050497740,4.704792,2379.0,2378.7,0.1175618]
[1728050497945,4.2038,2378.8,2378.7,0.1175618]
[1728050498361,4.20364,2378.9,2378.7,0.22178633]
[1728050498729,8.40741,2378.9,2378.7,0.22178633]
[1728050498970,8.4074,2378.9,2378.7,0.22178633]
[1728050499177,5.3945012,2378.9,2378.7,0.22178633]
[1728050499334,4.2038,2378.8,2378.7,0.22178633]
[1728050499535,5.5293,2378.8,2378.7,0.22178633]
[1728050499775,5.3945012,2378.9,2378.7,0.1175618]
[1728050499982,3.7755,2379.1,2378.7,0.1175618]
[1728050500273,3.0,2379.1,2378.7,4.3214318]
[1728050500481,7.20343,2379.1,2378.7,0.1175618]
[1728050500632,3.0,2379.3,2378.8,0.1040915]
[1728050500840,12.33078,2379.4,2378.7,0.1175618]
[1728050500841,4.2035,2379.0,2378.7,0.1175618]
[1728050501075,4.92385,2379.0,2378.8,0.1040915]
[1728050501579,4.75375,2378.9,2378.8,0.1040915]
[1728050501943,4.20375,2378.9,2378.8,0.1040915]
[1728050502383,5.54515,2378.9,2378.8,0.1040915]
[1728050502545,4.99515,2378.9,2378.7,0.1175618]
[1728050502891,5.8667,2378.9,2378.7,0.1175618]
[1728050503179,5.0753,2378.9,2378.7,0.1175618]
[1728050503396,0.87155,2378.9,2378.7,0.1175618]
[1728050503595,5.07526,2378.9,2378.7,0.1175618]
[1728050503899,0.87155,2378.9,2378.7,0.1175618]
[1728050504099,4.2038,2378.8,2378.7,0.1175618]
[1728050504402,5.203739,2378.8,2378.7,0.1175618]
[1728050504699,0.999939,2378.8,2378.7,0.1175618]
[1728050504857,0.72035,2379.0,2378.7,0.1175618]
[1728050505055,4.2037,2378.9,2378.7,0.1175618]